bitfinex/quotes_SOLUSD_20251118
["timestamp","ask_amount","ask_price","bid_price","bid_amount"]
[1763440501001,0.14216157,133.99,133.93,8.99244984]
[1763440501002,102.7,133.99,133.95,8.99244984]
[1763440501323,0.2,134.0,133.98,8.99244984]
[1763440501507,0.2,134.0,133.99,18.78127753]
[1763440501681,0.2,134.0,133.99,27.77372737]
[1763440501881,0.2,134.0,133.99,28.48372737]
[1763440502086,0.2,134.02,133.99,28.48372737]
[1763440502300,0.2,134.02,134.01,17.98489968]
[1763440502708,0.2,134.02,134.01,18.50489968]
[1763440502890,0.72,134.08,134.01,18.50489968]
[1763440502891,0.72,134.08,134.02,9.78882769]
[1763440503090,0.72,134.1,134.07,8.99244984]
[1763440503404,0.72,134.08,134.06,8.99244984]
[1763440503782,0.72,134.08,134.05,8.99244984]
[1763440505111,0.14216157,134.06,133.96,8.75488801]
[1763440505298,18.12096,134.07,134.05,8.99244984]
[1763440505503,0.72,134.06,134.05,8.99244984]
[1763440505709,0.72,134.06,134.04,8.99244984]
[1763440505887,18.84096,134.06,134.04,8.99244984]
[1763440506211,0.14216157,134.04,133.95,8.23488801]
[1763440506412,0.92,134.09,134.03,8.99244984]
[1763440506601,0.92,134.09,134.08,8.99244984]
[1763440506602,0.2,134.09,134.08,8.99244984]
[1763440508319,0.2,134.09,134.02,18.12096]
[1763440508320,0.92,134.09,134.02,18.12096]
[1763440508606,0.2,134.09,134.08,8.99244984]
[1763440509203,0.2,134.09,134.08,18.78127753]
[1763440509390,0.2,134.14,134.09,9.78882769]
[1763440509595,0.2,134.14,134.12,8.99244984]
[1763440510092,0.92,134.13,134.12,8.99244984]
[1763440511017,0.92,134.13,134.11,8.99244984]
[1763440511223,0.92,134.13,134.06,9.78882769]
[1763440511224,0.72,134.12,134.06,9.78882769]
[1763440511430,0.72,134.12,134.1,8.99244984]
[1763440512136,0.72,134.12,134.04,28.22978769]
[1763440512316,0.72,134.12,134.09,8.99244984]
[1763440512814,0.2,134.13,134.11,8.99244984]
[1763440513011,0.2,134.13,134.12,8.99244984]
[1763440513409,0.91,134.13,134.12,8.99244984]
[1763440513629,0.2,134.13,134.12,8.99244984]
[1763440513940,0.08,134.14,134.13,27.90978769]
[1763440514236,0.2,134.15,134.13,36.90223753]
[1763440514412,0.2,134.15,134.14,8.99244984]
[1763440514600,0.2,134.15,134.14,18.78127753]
[1763440514802,0.2,134.15,134.14,8.99244984]
[1763440515417,0.91,134.15,134.14,8.99244984]
[1763440516107,0.2,134.15,134.14,8.99244984]
[1763440516632,0.2,134.2,134.14,8.99244984]
[1763440516633,0.2,134.2,134.15,9.78882769]
[1763440516814,0.2,134.2,134.19,17.98489968]
[1763440517512,0.2,134.2,134.19,27.77372737]
[1763440519130,0.85,134.2,134.19,8.99244984]
[1763440519307,0.2,134.2,134.19,8.99244984]
[1763440519742,0.2,134.2,134.19,18.78127753]
[1763440519943,0.2,134.2,134.19,8.99244984]
[1763440520437,0.35,134.22,134.19,8.99244984]
[1763440520606,0.35,134.22,134.21,8.99244984]
[1763440520805,0.35,134.22,134.2,8.99244984]
[1763440521034,0.35,134.22,134.21,8.99244984]
[1763440521202,0.35,134.22,134.11,0.74565655]
[1763440521203,0.49216157,134.22,134.1,31.56536617]
[1763440521429,0.14216157,134.2,134.15,8.99244984]
[1763440521632,0.14216157,134.18,134.13,8.99244984]
[1763440521806,0.14216157,134.18,134.1,9.78882769]
[1763440522010,0.14216157,134.18,134.14,8.99244984]
[1763440522241,18.12096,134.14,134.03,22.16941637]
[1763440522454,18.12096,134.15,134.03,22.16941637]
[1763440522455,18.12096,134.13,134.11,8.99244984]
[1763440522734,18.12096,134.13,134.1,8.99244984]
[1763440522949,0.65,134.12,134.1,5.71966644]
[1763440523112,0.65,134.12,134.02,0.74615728]
[1763440523113,18.77096,134.12,134.09,5.71966644]
[1763440523417,18.77096,134.12,134.08,5.71966644]
[1763440523622,0.65,134.11,134.08,5.71966644]
[1763440523824,0.65,134.11,134.09,5.71966644]
[1763440524340,0.65,134.11,134.05,9.78882769]
[1763440524540,0.65,134.11,134.09,5.71966644]
[1763440524826,0.65,134.11,134.01,22.19418803]
[1763440524827,18.77096,134.11,134.08,5.71966644]
[1763440525027,18.77096,134.11,134.09,5.71966644]
[1763440525205,18.12096,134.12,134.03,0.3]
[1763440525405,18.12096,134.12,134.09,5.71966644]
[1763440525406,0.65,134.1,134.09,5.71966644]
[1763440525610,9.78882769,134.18,134.09,5.71966644]
[1763440525611,10.3202019,134.22,134.1,9.78882769]
[1763440525803,10.3202019,134.22,134.12,5.71966644]
[1763440525804,5.71966644,134.17,134.12,5.71966644]
[1763440526108,5.71966644,134.15,134.05,9.78882769]
[1763440526318,5.71966644,134.14,134.09,5.71966644]
[1763440526523,5.71966644,134.14,134.08,5.71966644]
[1763440526967,5.71966644,134.14,134.0,27.89261629]
[1763440526968,5.71966644,134.11,134.0,5.71966644]
[1763440527119,5.71966644,134.11,134.05,5.71966644]
[1763440527617,18.12096,134.13,134.08,5.71966644]
[1763440527822,18.12096,134.11,134.09,5.71966644]
[1763440528044,18.77096,134.15,134.09,5.71966644]
[1763440528343,6.36966644,134.15,134.09,5.71966644]
[1763440528518,18.12096,134.12,134.09,5.71966644]
[1763440529228,18.12096,134.1,133.93,33.55992914]
[1763440529450,25.13001015,134.1,134.05,7.00905015]
[1763440529622,25.13001015,134.1,134.04,7.00905015]
[1763440529822,0.14216157,134.1,134.05,7.00905015]
[1763440530027,7.15121172,134.1,134.05,7.00905015]
[1763440530235,7.15121172,134.1,134.03,7.00905015]
[1763440530236,18.12096,134.08,134.03,7.00905015]
[1763440530434,7.00905015,134.08,134.03,7.00905015]
[1763440530738,25.78001015,134.07,134.01,7.00905015]
[1763440530943,25.78001015,134.07,133.88,6.52055441]
[1763440530944,18.12096,134.04,133.99,7.00905015]
[1763440531440,0.65,134.03,133.99,7.00905015]
[1763440532349,0.65,134.03,134.0,7.00905015]
[1763440532652,0.14216157,134.07,133.96,0.14216157]
[1763440532827,18.12096,134.05,134.0,7.00905015]
[1763440533148,0.65,134.04,133.94,0.14216157]
[1763440533329,0.65,134.04,133.99,7.00905015]
[1763440534039,0.65,134.04,134.01,7.00905015]
[1763440534247,18.12096,134.03,134.01,7.00905015]
[1763440534457,7.00905015,134.09,134.02,7.00905015]
[1763440534623,7.65905015,134.1,134.05,7.00905015]
[1763440534822,18.12096,134.07,134.04,7.00905015]
[1763440535646,0.65,134.07,134.03,7.00905015]
[1763440535941,0.65,134.07,134.04,7.00905015]
[1763440536151,0.65,134.07,134.01,9.78882769]
[1763440536324,0.65,134.07,134.03,7.00905015]
[1763440536950,0.65,134.07,134.04,7.00905015]
[1763440537740,0.14216157,134.1,134.0,7.00905015]
[1763440537741,0.65,134.13,134.06,7.00905015]
[1763440537947,18.12096,134.1,134.01,9.78882769]
[1763440538169,7.00905015,134.13,134.07,7.00905015]
[1763440538464,0.65,134.16,134.1,7.00905015]
[1763440538662,0.14216157,134.15,134.1,7.00905015]
[1763440538860,18.12096,134.12,134.04,9.93098926]
[1763440539034,18.12096,134.12,134.1,7.00905015]
[1763440539356,7.00905015,134.14,134.09,7.00905015]
[1763440539662,7.15121172,134.14,134.09,7.00905015]
[1763440539843,18.77096,134.13,134.09,7.00905015]
[1763440540040,0.14216157,134.12,134.03,18.12096]
[1763440540252,0.14216157,134.12,134.06,7.00905015]
[1763440540253,7.15121172,134.12,134.06,7.00905015]
[1763440540557,7.15121172,134.12,134.07,7.00905015]
[1763440540730,0.14216157,134.12,134.07,7.00905015]
[1763440540929,0.79216157,134.12,134.07,7.00905015]
[1763440542368,18.12096,134.15,134.09,7.00905015]
[1763440542554,0.14216157,134.14,134.09,7.00905015]
[1763440542743,0.14216157,134.14,134.04,9.78882769]
[1763440542744,0.14216157,134.11,134.04,9.78882769]
[1763440542976,0.86216157,134.14,134.07,7.00905015]
[1763440542977,25.27217172,134.13,134.07,7.00905015]
[1763440543263,18.12096,134.11,134.08,7.00905015]
[1763440543763,0.14216157,134.12,134.07,7.00905015]
[1763440543952,0.72,134.1,134.03,9.78882769]
[1763440544134,0.72,134.1,134.06,7.00905015]
[1763440544135,18.12096,134.09,134.06,7.00905015]
[1763440544459,18.12096,134.09,134.03,9.78882769]
[1763440544460,18.26312157,134.08,134.03,7.00905015]
[1763440544768,7.15121172,134.04,133.94,6.10731206]
[1763440545081,18.12096,133.98,133.95,7.00905015]
[1763440545265,18.12096,133.98,133.94,7.00905015]
[1763440545556,0.72,133.97,133.9,6.30731206]
[1763440545737,0.72,133.97,133.94,7.00905015]
[1763440546057,0.72,133.97,133.95,7.00905015]
[1763440546875,0.72,133.97,133.94,7.00905015]
[1763440547853,0.72,133.97,133.95,7.00905015]
[1763440548860,0.72,134.0,133.96,7.00905015]
[1763440549060,0.72,134.0,133.98,7.00905015]
[1763440549263,0.72,134.0,133.96,7.00905015]
[1763440549580,18.12096,133.99,133.96,7.00905015]
[1763440549767,18.12096,133.99,133.95,7.00905015]
[1763440549955,0.72,133.98,133.95,7.00905015]
[1763440550178,0.72,133.98,133.96,7.00905015]
[1763440550474,0.72,134.03,133.97,7.00905015]
[1763440550658,18.12096,134.02,134.0,7.00905015]
[1763440550852,0.72,134.02,134.01,7.00905015]
[1763440551047,0.72,134.05,134.01,7.00905015]
[1763440551686,0.72,134.05,134.03,7.00905015]
[1763440551896,0.72,134.05,134.02,7.00905015]
[1763440552557,18.84096,134.05,134.02,7.00905015]
[1763440552964,0.72,134.04,134.02,7.00905015]
[1763440553169,25.13001015,134.08,134.03,7.00905015]
[1763440553373,0.72,134.07,134.03,7.00905015]
[1763440553562,0.72,134.07,134.02,7.00905015]
[1763440554169,0.72,134.07,134.03,7.00905015]
[1763440554467,0.72,134.07,134.04,7.00905015]
[1763440554871,0.72,134.07,134.03,7.00905015]
[1763440555656,0.72,134.07,134.05,7.00905015]
[1763440555860,18.84096,134.07,134.05,7.00905015]
[1763440556059,18.84096,134.07,134.01,0.7]
[1763440556452,18.12096,134.07,134.0,16.79787784]
[1763440556658,0.72,134.06,134.0,9.78882769]
[1763440556990,0.72,134.06,134.03,7.00905015]
[1763440557292,0.72,134.07,134.03,7.00905015]
[1763440557449,0.72,134.07,134.04,7.00905015]
[1763440558175,0.72,134.07,134.03,7.00905015]
[1763440559578,0.72,134.07,134.04,7.00905015]
[1763440560353,0.72,134.11,134.06,7.00905015]
[1763440560669,0.72,134.1,134.06,7.00905015]
[1763440560983,11.02208478,134.16,134.09,7.00905015]
[1763440561284,0.72,134.15,134.14,7.00905015]
[1763440561490,7.00905015,134.22,134.15,9.78882769]
[1763440561777,7.72905015,134.21,134.12,0.7]
[1763440561978,0.72,134.21,134.18,7.00905015]
[1763440562386,0.72,134.21,134.17,7.00905015]
[1763440562563,0.72,134.21,134.18,7.00905015]
[1763440562962,0.72,134.21,134.13,28.60978769]
[1763440563159,0.72,134.21,134.17,7.00905015]
[1763440564208,0.72,134.21,134.13,10.48882769]
[1763440564381,18.12096,134.18,134.15,7.00905015]
[1763440564891,0.72,134.17,134.15,7.00905015]
[1763440565092,18.84096,134.17,134.14,7.00905015]
[1763440565271,0.72,134.17,134.14,7.00905015]
[1763440565473,0.72,134.16,134.14,7.00905015]
[1763440565869,0.72,134.16,134.13,7.00905015]
[1763440566470,0.72,134.16,134.14,7.00905015]
[1763440566685,18.12096,134.21,134.15,7.00905015]
[1763440566912,25.13001015,134.2,134.15,7.00905015]
[1763440567077,0.72,134.2,134.16,7.00905015]
[1763440567278,0.14216157,134.22,134.17,7.00905015]
[1763440567279,18.84096,134.19,134.17,7.00905015]
[1763440567901,18.84096,134.19,134.18,7.00905015]
[1763440567902,0.72,134.19,134.18,7.00905015]
[1763440568478,0.72,134.22,134.18,7.00905015]
[1763440568681,18.12096,134.21,134.18,7.00905015]
[1763440568910,18.12096,134.21,134.1,6.10731206]
[1763440569092,0.72,134.2,134.14,7.00905015]
[1763440569481,0.72,134.24,134.19,7.00905015]
[1763440569686,0.72,134.24,134.22,7.00905015]
[1763440569980,0.72,134.24,134.17,9.78882769]
[1763440570179,0.72,134.24,134.19,7.00905015]
[1763440570506,0.72,134.24,134.2,7.00905015]
[1763440570703,18.12096,134.22,134.2,7.00905015]
[1763440570890,18.12096,134.22,134.16,16.79787784]
[1763440571225,0.72,134.27,134.21,7.00905015]
[1763440571443,0.72,134.27,134.24,7.00905015]
[1763440571826,18.12096,134.26,134.24,7.00905015]
[1763440572337,18.78096,134.26,134.21,9.78882769]
[1763440572514,18.78096,134.26,134.24,7.00905015]
[1763440573512,0.66,134.25,134.19,10.45882769]
[1763440573735,0.66,134.25,134.22,7.00905015]
[1763440573929,18.12096,134.24,134.15,9.78882769]
[1763440574241,7.00905015,134.29,134.23,7.00905015]
[1763440574412,0.66,134.31,134.28,7.00905015]
[1763440574615,0.66,134.39,134.3,7.00905015]
[1763440574935,363.04684264,134.54,134.3,7.00905015]
[1763440574936,7.00905015,134.42,134.37,7.00905015]
[1763440575137,6.43785209,134.45,134.39,7.00905015]
[1763440575138,7.00905015,134.45,134.39,7.00905015]
[1763440575321,22.62,134.55,134.36,9.78882769]
[1763440575322,0.66,134.44,134.41,7.00905015]
[1763440575518,0.66,134.44,134.34,9.78882769]
[1763440575519,18.12096,134.43,134.34,9.78882769]
[1763440575825,0.66,134.44,134.39,7.00905015]
[1763440576027,0.66,134.43,134.34,10.45882769]
[1763440576211,0.66,134.43,134.37,7.00905015]
[1763440576716,18.12096,134.37,134.26,6.10731206]
[1763440576920,18.12096,134.34,134.26,9.78882769]
[1763440577137,18.12096,134.34,134.18,0.74526755]
[1763440577138,0.66,134.34,134.27,0.67]
[1763440577316,0.66,134.37,134.33,7.00905015]
[1763440577523,18.78096,134.39,134.35,7.00905015]
[1763440577728,18.12096,134.38,134.32,9.78882769]
[1763440577926,7.00905015,134.37,134.29,9.78882769]
[1763440578133,0.66,134.37,134.32,7.00905015]
[1763440578325,0.66,134.36,134.32,7.00905015]
[1763440578828,18.78096,134.36,134.29,9.78882769]
[1763440579018,18.78096,134.36,134.31,7.00905015]
[1763440579222,0.72,134.35,134.29,9.78882769]
[1763440579427,0.72,134.35,134.24,7.00905015]
[1763440579428,7.00905015,134.34,134.26,9.78882769]
[1763440579749,18.12096,134.33,134.26,9.78882769]
[1763440579914,0.72,134.34,134.3,7.00905015]
[1763440580111,18.84096,134.34,134.3,7.00905015]
[1763440580324,7.72905015,134.34,134.28,7.00905015]
[1763440580624,0.72,134.33,134.25,10.47882769]
[1763440581022,0.72,134.36,134.31,7.00905015]
[1763440581238,0.72,134.36,134.32,7.00905015]
[1763440581420,0.72,134.36,134.28,9.78882769]
[1763440581626,18.12096,134.32,134.29,7.00905015]
[1763440581919,25.13001015,134.35,134.3,7.00905015]
[1763440582120,25.85001015,134.35,134.3,7.00905015]
[1763440582432,0.72,134.34,134.3,7.00905015]
[1763440583028,18.12096,134.32,134.27,7.00905015]
[1763440583236,0.72,134.31,134.27,7.00905015]
[1763440584743,0.72,134.31,134.26,7.00905015]
[1763440584744,18.12096,134.29,134.26,7.00905015]
[1763440585036,25.10716122,134.29,134.23,6.98620122]
[1763440585222,7.70620122,134.28,134.23,6.98620122]
[1763440585423,0.14216157,134.33,134.24,0.69]
[1763440585628,0.72,134.34,134.29,11.35666556]
[1763440586129,0.72,134.34,134.25,0.69]
[1763440586321,0.72,134.34,134.29,11.35666556]
[1763440586531,0.72,134.34,134.26,9.78882769]
[1763440586734,0.72,134.34,134.3,11.35666556]
[1763440587332,0.72,134.34,134.26,9.78882769]
[1763440587534,0.72,134.34,134.29,11.35666556]
[1763440587736,0.72,134.34,134.3,11.35666556]
[1763440589153,12.07666556,134.34,134.28,11.35666556]
[1763440589344,12.07666556,134.34,134.29,11.35666556]
[1763440589545,2.0,134.39,134.33,11.35666556]
[1763440589546,0.72,134.39,134.33,11.35666556]
[1763440589750,0.72,134.39,134.31,9.78882769]
[1763440589939,0.72,134.39,134.35,11.35666556]
[1763440590135,18.84096,134.39,134.36,11.35666556]
[1763440590455,0.72,134.41,134.38,11.35666556]
[1763440590764,10.65383472,134.45,134.39,11.35666556]
[1763440590765,0.72,134.44,134.39,11.35666556]
[1763440590929,0.72,134.44,134.4,11.35666556]
[1763440591435,18.12096,134.43,134.4,11.35666556]
[1763440591629,18.12096,134.43,134.37,0.69]
[1763440591863,0.72,134.47,134.42,11.35666556]
[1763440592040,0.72,134.47,134.45,11.35666556]
[1763440592364,0.72,134.49,134.45,11.35666556]
[1763440592663,18.12096,134.48,134.45,11.35666556]
[1763440592967,0.72,134.49,134.41,0.69]
[1763440593167,0.72,134.49,134.4,9.78882769]
[1763440593459,0.72,134.49,134.41,0.69]
[1763440593835,18.12096,134.46,134.43,11.35666556]
[1763440594036,0.72,134.48,134.45,11.35666556]
[1763440594255,0.72,134.51,134.47,11.35666556]
[1763440594542,18.12096,134.5,134.47,11.35666556]
[1763440594747,18.84096,134.5,134.47,11.35666556]
[1763440595046,0.72,134.52,134.48,11.35666556]
[1763440595255,0.72,134.51,134.48,11.35666556]
[1763440595455,0.72,134.51,134.47,11.35666556]
[1763440596334,0.72,134.51,134.48,11.35666556]
[1763440596540,0.72,134.51,134.47,11.35666556]
[1763440598436,18.12096,134.48,134.45,11.35666556]
[1763440598658,18.12096,134.48,134.4,11.35666556]
[1763440598659,11.35666556,134.48,134.43,11.35666556]
[1763440598965,0.72,134.47,134.43,11.35666556]
[1763440599138,0.72,134.47,134.44,11.35666556]
[1763440599332,18.84096,134.47,134.45,11.35666556]
[1763440599536,18.84096,134.47,134.44,11.35666556]
[1763440599757,18.84096,134.47,134.41,10.47882769]
[1763440600058,0.72,134.49,134.43,9.78882769]
[1763440600262,18.12096,134.5,134.43,9.78882769]
[1763440600459,18.12096,134.5,134.47,11.35666556]
[1763440600667,18.84096,134.5,134.46,11.35666556]
[1763440601166,11.35666556,134.53,134.48,11.35666556]
[1763440601367,17.32121927,134.57,134.47,11.35666556]
[1763440601368,0.72,134.5,134.47,11.35666556]
[1763440601545,0.72,134.5,134.46,11.35666556]
[1763440601939,0.72,134.5,134.47,11.35666556]
[1763440602761,0.72,134.5,134.46,11.35666556]
[1763440602964,0.67,134.52,134.47,21.14549325]
[1763440604268,11.35666556,134.5,134.37,17.46397762]
[1763440604561,11.35666556,134.5,134.44,11.35666556]
[1763440604562,12.02666556,134.49,134.44,11.35666556]
[1763440604952,0.67,134.48,134.43,11.35666556]
[1763440605191,12.02666556,134.48,134.43,11.35666556]
[1763440605575,0.67,134.47,134.43,11.35666556]
[1763440606271,0.67,134.47,134.42,9.78882769]
[1763440606272,0.67,134.47,134.42,21.14549325]
[1763440606577,18.79096,134.47,134.42,21.14549325]
[1763440607074,0.67,134.46,134.42,21.14549325]
[1763440607772,0.67,134.46,134.42,9.78882769]
[1763440607949,0.67,134.46,134.42,21.14549325]
[1763440608796,0.14216157,134.51,134.45,11.35666556]
[1763440608797,0.67,134.51,134.45,11.35666556]
[1763440608944,12.02666556,134.51,134.45,11.35666556]
[1763440609149,12.02666556,134.51,134.46,11.35666556]
[1763440609351,12.02666556,134.5,134.44,21.14549325]
[1763440609564,11.35666556,134.48,134.43,11.35666556]
[1763440609755,11.35666556,134.48,134.43,9.78882769]
[1763440610080,18.12096,134.5,134.42,11.35666556]
[1763440610081,12.02666556,134.47,134.42,9.78882769]
[1763440610251,0.67,134.46,134.42,21.14549325]
[1763440610673,11.35666556,134.45,134.41,9.78882769]
[1763440610984,0.67,134.46,134.32,11.35666556]
[1763440610985,11.35666556,134.42,134.36,11.35666556]
[1763440611271,11.35666556,134.41,134.35,11.35666556]
[1763440611465,29.47762556,134.41,134.35,21.14549325]
[1763440611668,29.47762556,134.38,134.26,6.10731206]
[1763440611867,11.35666556,134.35,134.29,11.35666556]
[1763440612179,11.35666556,134.34,134.29,11.35666556]
[1763440612551,12.02666556,134.33,134.22,6.10731206]
[1763440612753,11.35666556,134.3,134.22,0.72]
[1763440612950,18.79096,134.32,134.28,11.35666556]
[1763440613180,18.79096,134.32,134.27,11.35666556]
[1763440613351,12.02666556,134.32,134.27,11.35666556]
[1763440613551,0.67,134.31,134.26,11.35666556]
[1763440613751,18.12096,134.3,134.26,11.35666556]
[1763440614090,11.35666556,134.29,134.25,0.2]
[1763440614294,12.02666556,134.29,134.25,0.2]
[1763440614579,0.67,134.28,134.25,0.2]
[1763440615368,11.35666556,134.26,134.25,0.2]
[1763440615677,29.61978713,134.26,134.25,0.2]
[1763440615859,0.14216157,134.25,134.17,11.35666556]
[1763440616057,11.35666556,134.21,134.15,11.35666556]
[1763440616254,18.12096,134.2,134.15,11.35666556]
[1763440616477,18.79096,134.2,134.16,11.35666556]
[1763440616672,0.67,134.19,134.16,11.35666556]
[1763440616877,0.67,134.19,134.15,11.35666556]
[1763440617869,0.67,134.19,134.13,0.72]
[1763440618076,0.67,134.19,134.16,11.35666556]
[1763440618285,11.35666556,134.17,134.08,12.07666556]
[1763440618477,11.35666556,134.17,134.11,11.35666556]
[1763440618478,29.47762556,134.17,134.11,11.35666556]
[1763440618674,18.12096,134.17,134.08,18.12096]
[1763440618870,0.67,134.16,134.12,11.35666556]
[1763440619664,0.67,134.16,134.11,11.35666556]
[1763440619665,18.12096,134.15,134.11,11.35666556]
[1763440620097,0.67,134.14,134.06,18.84096]
[1763440620292,0.67,134.14,134.09,11.35666556]
[1763440620492,11.35666556,134.13,134.08,11.35666556]
[1763440620675,11.35666556,134.12,134.04,0.72]
[1763440620877,18.26312157,134.12,134.06,11.35666556]
[1763440621188,0.67,134.11,134.06,11.35666556]
[1763440621489,0.67,134.11,134.05,11.35666556]
[1763440621490,11.35666556,134.1,134.05,11.35666556]
[1763440621688,12.02666556,134.11,134.06,11.35666556]
[1763440621896,18.12096,134.09,134.03,0.2]
[1763440622094,0.67,134.1,134.04,11.35666556]
[1763440622279,11.35666556,134.07,134.03,0.2]
[1763440622476,18.12096,134.08,133.95,0.72]
[1763440622477,11.35666556,134.04,133.95,0.72]
[1763440622692,0.14216157,134.04,133.99,11.35666556]
[1763440622886,30.14762556,134.05,133.96,9.78882769]
[1763440623077,0.67,134.04,133.98,11.35666556]
[1763440623281,18.12096,134.05,133.92,29.47762556]
[1763440623282,18.12096,134.05,134.0,11.35666556]
[1763440623593,0.67,134.1,134.04,11.35666556]
[1763440623795,2.0,134.19,134.08,11.35666556]
[1763440623995,11.35666556,134.15,134.1,11.35666556]
[1763440624480,12.02666556,134.14,134.08,0.72]
[1763440624685,29.47762556,134.13,134.08,11.35666556]
[1763440624883,18.12096,134.11,134.07,11.35666556]
[1763440625088,18.79096,134.13,134.08,11.35666556]
[1763440625285,11.35666556,134.09,134.01,0.72]
[1763440625499,29.47762556,134.09,134.02,9.78882769]
[1763440625685,18.79096,134.09,134.04,11.35666556]
[1763440625883,11.35666556,134.1,134.05,11.35666556]
[1763440626080,29.47762556,134.11,134.05,11.35666556]
[1763440626276,29.47762556,134.11,133.93,6.85397076]
[1763440626277,11.35666556,134.09,134.01,0.72]
[1763440626494,29.47762556,134.08,134.02,21.14549325]
[1763440627220,29.47762556,134.08,134.02,21.86549325]
[1763440627395,11.35666556,134.06,133.98,0.72]
[1763440627587,11.35666556,134.06,134.0,11.35666556]
[1763440627785,29.47762556,134.06,134.01,11.35666556]
[1763440627996,18.79096,134.06,134.0,12.07666556]
[1763440628192,18.79096,134.06,133.99,11.35666556]
[1763440628193,18.12096,134.03,133.99,11.35666556]
[1763440628424,18.12096,134.03,133.97,10.50882769]
[1763440628425,18.12096,134.03,133.97,11.35666556]
[1763440628717,11.35666556,134.02,133.97,11.35666556]
[1763440629002,30.14762556,134.02,133.97,11.35666556]
[1763440629211,11.35666556,134.04,133.99,11.35666556]
[1763440629512,0.67,134.08,134.01,11.35666556]
[1763440629813,0.67,134.08,133.99,9.78882769]
[1763440629814,0.67,134.11,134.04,11.35666556]
[1763440630013,12.02666556,134.1,134.04,11.35666556]
[1763440630342,11.35666556,134.09,134.04,11.35666556]
[1763440630520,12.02666556,134.14,134.09,9.78882769]
[1763440630679,11.35666556,134.16,134.1,11.35666556]
[1763440630874,11.35666556,134.16,134.11,11.35666556]
[1763440631084,11.35666556,134.14,134.08,9.78882769]
[1763440631300,11.35666556,134.13,134.07,21.14549325]
[1763440631485,11.35666556,134.13,134.06,0.72]
[1763440631486,29.47762556,134.12,134.06,11.35666556]
[1763440631980,18.12096,134.12,134.07,11.35666556]
[1763440632186,18.12096,134.12,134.08,11.35666556]
[1763440632492,12.01666556,134.11,134.05,11.35666556]
[1763440632795,11.35666556,134.09,134.04,11.35666556]
[1763440632977,12.01666556,134.1,134.05,11.35666556]
[1763440633174,12.01666556,134.1,134.03,9.78882769]
[1763440633374,2.0,134.17,134.03,9.78882769]
[1763440633375,0.66,134.13,134.08,11.35666556]
[1763440633680,18.78096,134.13,134.09,11.35666556]
[1763440634194,0.66,134.12,134.09,11.35666556]
[1763440634502,0.66,134.12,134.01,18.12096]
[1763440634503,11.35666556,134.11,134.03,0.7]
[1763440634811,0.66,134.12,134.03,0.7]
[1763440634812,29.47762556,134.1,134.05,11.35666556]
[1763440634991,18.12096,134.1,134.06,11.35666556]
[1763440635216,0.66,134.09,134.03,0.7]
[1763440635503,0.66,134.09,134.04,11.35666556]
[1763440635681,12.01666556,134.09,134.04,11.35666556]
[1763440635881,0.66,134.08,134.04,11.35666556]
[1763440636381,30.13762556,134.1,134.05,11.35666556]
[1763440636579,12.01666556,134.09,134.01,0.7]
[1763440636788,0.66,134.09,134.04,11.35666556]
[1763440637009,12.01666556,134.09,134.04,11.35666556]
[1763440637524,0.66,134.08,134.03,11.35666556]
[1763440637898,0.66,134.08,134.04,11.35666556]
[1763440638298,29.47762556,134.1,134.05,21.84549325]
[1763440638594,12.65383472,134.18,134.08,11.35666556]
[1763440638595,12.01666556,134.13,134.08,11.35666556]
[1763440638796,0.66,134.13,134.08,12.04666556]
[1763440639006,11.35666556,134.14,134.03,18.12096]
[1763440639215,0.71,134.12,134.08,11.35666556]
[1763440639693,0.71,134.12,134.03,0.69]
[1763440639694,18.83096,134.12,134.03,0.69]
[1763440639894,18.12096,134.09,134.04,21.14549325]
[1763440640111,29.47762556,134.09,134.04,21.14549325]
[1763440640317,18.12096,134.07,134.05,11.35666556]
[1763440640625,0.71,134.11,134.06,21.14549325]
[1763440640792,11.35666556,134.07,134.0,0.69]
[1763440640991,11.35666556,134.07,133.96,0.2]
[1763440640992,29.47762556,134.08,133.99,11.35666556]
[1763440641195,18.12096,134.04,133.97,0.69]